[Event "*** MasterClass Titled Tuesday Blitz"]
[Site "Chess.com"]
[Date "2017.10.03"]
[Round "1"]
[White "JosephRyan"]
[Black "Diwi89"]
[Result "0-1"]
[WhiteElo "2221"]
[BlackElo "2516"]
[TimeControl "180+2"]
[EndTime "13:07:12 PDT"]
[Termination "Diwi89 won by resignation"]

1. d4 {[%clk 0:02:50.1]} 1... d5 {[%clk 0:02:58.1]} 2. Bf4 {[%clk 0:02:49.9]}
2... Bf5 {[%clk 0:02:55.8]} 3. c4 {[%clk 0:02:48.5]} 3... c6 {[%clk 0:02:53.2]}
4. Nc3 {[%clk 0:02:48.5]} 4... Nf6 {[%clk 0:02:51]} 5. e3 {[%clk 0:02:49.7]}
5... e6 {[%clk 0:02:50.5]} 6. Qb3 {[%clk 0:02:50.7]} 6... Qb6 {[%clk 0:02:48.2]}
7. c5 {[%clk 0:02:50.3]} 7... Qxb3 {[%clk 0:02:48]} 8. axb3 {[%clk 0:02:52.2]}
8... Nbd7 {[%clk 0:02:43.2]} 9. h3 {[%clk 0:02:51.7]} 9... a6 {[%clk 0:02:39]}
10. b4 {[%clk 0:02:52.9]} 10... Rc8 {[%clk 0:02:38.1]} 11. Nf3 {[%clk
0:02:54.2]} 11... h6 {[%clk 0:02:37.7]} 12. Nd2 {[%clk 0:02:54.9]} 12... Be7
{[%clk 0:02:37.6]} 13. Nb3 {[%clk 0:02:55.9]} 13... Bd8 {[%clk 0:02:38]} 14. Na5
{[%clk 0:02:46.5]} 14... Bxa5 {[%clk 0:02:35.6]} 15. bxa5 {[%clk 0:02:47.6]}
15... O-O {[%clk 0:02:26.3]} 16. Ra3 {[%clk 0:02:45.6]} 16... Rfe8 {[%clk
0:02:18.2]} 17. Kd2 {[%clk 0:02:45.1]} 17... e5 {[%clk 0:02:16.6]} 18. Bh2
{[%clk 0:02:44.3]} 18... exd4 {[%clk 0:02:14.9]} 19. exd4 {[%clk 0:02:45.7]}
19... Nf8 {[%clk 0:02:16.2]} 20. Rb3 {[%clk 0:02:42.8]} 20... Re7 {[%clk
0:02:16.4]} 21. Bd3 {[%clk 0:02:37.8]} 21... Bxd3 {[%clk 0:02:11.1]} 22. Kxd3
{[%clk 0:02:39.7]} 22... Ne6 {[%clk 0:02:11.6]} 23. Bd6 {[%clk 0:02:32.5]} 23...
Rd7 {[%clk 0:02:12.1]} 24. Re1 {[%clk 0:02:22.6]} 24... Ne8 {[%clk 0:02:12.6]}
25. Bg3 {[%clk 0:02:22.7]} 25... Re7 {[%clk 0:02:13.7]} 26. f3 {[%clk
0:02:13.9]} 26... f6 {[%clk 0:02:09.2]} 27. Ne2 {[%clk 0:02:04.4]} 27... g5
{[%clk 0:02:03.6]} 28. Bh2 {[%clk 0:01:50.9]} 28... Kf7 {[%clk 0:02:01.6]} 29.
Nc3 {[%clk 0:01:48.3]} 29... Rd8 {[%clk 0:01:57.1]} 30. Bg3 {[%clk 0:01:45.1]}
30... Rdd7 {[%clk 0:01:55.9]} 31. Ra3 {[%clk 0:01:45.4]} 31... N8g7 {[%clk
0:01:55.3]} 32. Raa1 {[%clk 0:01:44.8]} 32... Nf5 {[%clk 0:01:55.8]} 33. Bf2
{[%clk 0:01:44.3]} 33... Nf4+ {[%clk 0:01:56.7]} 34. Kd2 {[%clk 0:01:45.4]}
34... Nxg2 {[%clk 0:01:57.8]} 35. Rxe7+ {[%clk 0:01:43]} 35... Rxe7 {[%clk
0:01:59.7]} 36. Ne2 {[%clk 0:01:42.8]} 36... Ngh4 {[%clk 0:01:54.6]} 37. Bxh4
{[%clk 0:01:42.3]} 37... Nxh4 {[%clk 0:01:55.6]} 38. f4 {[%clk 0:01:41.6]} 38...
Kg6 {[%clk 0:01:56.5]} 39. Rf1 {[%clk 0:01:37.9]} 39... Re4 {[%clk 0:01:55.9]}
40. Kd3 {[%clk 0:01:35.6]} 40... Re7 {[%clk 0:01:51.4]} 41. b4 {[%clk
0:01:35.3]} 41... Nf5 {[%clk 0:01:51]} 42. Rf3 {[%clk 0:01:28.7]} 42... h5
{[%clk 0:01:52.2]} 43. fxg5 {[%clk 0:01:26.6]} 43... fxg5 {[%clk 0:01:52.8]} 44.
Ng3 {[%clk 0:01:26.5]} 44... Nxg3 {[%clk 0:01:51.1]} 45. Rxg3 {[%clk 0:01:27.2]}
45... Re4 {[%clk 0:01:51.7]} 46. Rg1 {[%clk 0:01:25.2]} 46... g4 {[%clk
0:01:51.7]} 47. hxg4 {[%clk 0:01:25.3]} 47... hxg4 {[%clk 0:01:53.2]} 48. Rg2
{[%clk 0:01:18.4]} 48... Kg5 {[%clk 0:01:50.9]} 49. Rg1 {[%clk 0:01:18.9]} 49...
Re7 {[%clk 0:01:50]} 50. Rh1 {[%clk 0:01:14.9]} 50... g3 {[%clk 0:01:48.2]} 51.
Rh7 {[%clk 0:00:57.6]} 51... Rxh7 {[%clk 0:01:48.2]} 0-1

[Event "*** MasterClass Titled Tuesday Blitz"]
[Site "Chess.com"]
[Date "2017.10.03"]
[Round "1"]
[White "catalin009"]
[Black "BogdanDeac"]
[Result "1/2-1/2"]
[WhiteElo "2355"]
[BlackElo "2634"]
[TimeControl "180+2"]
[EndTime "13:07:23 PDT"]
[Termination "Game drawn by agreement"]

1. Nf3 {[%clk 0:03:01.9]} 1... b6 {[%clk 0:02:58]} 2. g3 {[%clk 0:03:01.8]} 2...
Bb7 {[%clk 0:02:59]} 3. Bg2 {[%clk 0:03:03.5]} 3... g6 {[%clk 0:03:00.2]} 4. O-O
{[%clk 0:03:00.8]} 4... Bg7 {[%clk 0:03:01.2]} 5. d3 {[%clk 0:02:50.9]} 5... d5
{[%clk 0:03:00.7]} 6. Nbd2 {[%clk 0:02:50.2]} 6... Nf6 {[%clk 0:03:00.8]} 7. Re1
{[%clk 0:02:37.3]} 7... O-O {[%clk 0:03:00.8]} 8. c3 {[%clk 0:02:21.6]} 8... Re8
{[%clk 0:02:49.5]} 9. Qc2 {[%clk 0:02:18.1]} 9... e5 {[%clk 0:02:49]} 10. e4
{[%clk 0:02:19.4]} 10... Nbd7 {[%clk 0:02:49.9]} 11. b4 {[%clk 0:01:53.7]} 11...
a5 {[%clk 0:02:46.5]} 12. Bb2 {[%clk 0:01:50.2]} 12... h6 {[%clk 0:02:15.3]} 13.
a3 {[%clk 0:01:49.4]} 13... c6 {[%clk 0:02:13.1]} 14. d4 {[%clk 0:01:29.5]}
14... dxe4 {[%clk 0:01:49.8]} 15. Nxe5 {[%clk 0:01:12.7]} 15... Nxe5 {[%clk
0:01:47.3]} 16. dxe5 {[%clk 0:01:14.6]} 16... Rxe5 {[%clk 0:01:48.1]} 17. c4
{[%clk 0:01:05.7]} 17... Re6 {[%clk 0:01:44.4]} 18. Nxe4 {[%clk 0:01:00.3]}
18... axb4 {[%clk 0:01:43.9]} 19. Nxf6+ {[%clk 0:00:48.3]} 19... Rxf6 {[%clk
0:01:44]} 20. axb4 {[%clk 0:00:44.2]} 20... Rxa1 {[%clk 0:01:37.4]} 21. Bxa1
{[%clk 0:00:42.7]} 21... Rd6 {[%clk 0:01:36.7]} 22. Bxg7 {[%clk 0:00:42.4]}
22... Kxg7 {[%clk 0:01:37]} 23. c5 {[%clk 0:00:43.9]} 23... bxc5 {[%clk
0:01:35.4]} 24. bxc5 {[%clk 0:00:39]} 24... Rf6 {[%clk 0:01:33]} 25. Qc3 {[%clk
0:00:37.3]} 25... h5 {[%clk 0:01:20.5]} 26. h4 {[%clk 0:00:30.9]} 26... Kg8
{[%clk 0:00:59.7]} 27. Rb1 {[%clk 0:00:14.1]} 27... Ba6 {[%clk 0:00:55.6]} 28.
Qe5 {[%clk 0:00:14.4]} 28... Re6 {[%clk 0:00:52.5]} 29. Rb8 {[%clk 0:00:11.2]}
29... Rxe5 {[%clk 0:00:53]} 30. Rxd8+ {[%clk 0:00:12.1]} 1/2-1/2

[Event "*** MasterClass Titled Tuesday Blitz"]
[Site "Chess.com"]
[Date "2017.10.03"]
[Round "1"]
[White "Gabrielian_Artur"]
[Black "michaelk123"]
[Result "1-0"]
[WhiteElo "2574"]
[BlackElo "2298"]
[TimeControl "180+2"]
[EndTime "13:07:23 PDT"]
[Termination "Gabrielian_Artur won by resignation"]

1. e4 {[%clk 0:03:01.7]} 1... c6 {[%clk 0:03:00.6]} 2. d4 {[%clk 0:03:02]} 2...
d5 {[%clk 0:03:01.5]} 3. Nc3 {[%clk 0:03:02.6]} 3... dxe4 {[%clk 0:03:01.9]} 4.
Nxe4 {[%clk 0:03:03.5]} 4... Bf5 {[%clk 0:03:03.6]} 5. Ng3 {[%clk 0:03:04]} 5...
Bg6 {[%clk 0:03:04.4]} 6. c3 {[%clk 0:03:05.1]} 6... Nf6 {[%clk 0:02:54.9]} 7.
Nh3 {[%clk 0:03:05.9]} 7... e6 {[%clk 0:02:54.9]} 8. Nf4 {[%clk 0:03:06.3]} 8...
Bd6 {[%clk 0:02:54.2]} 9. h4 {[%clk 0:03:06.4]} 9... Qc7 {[%clk 0:02:53.4]} 10.
Qf3 {[%clk 0:03:06.3]} 10... Nbd7 {[%clk 0:02:51.2]} 11. h5 {[%clk 0:03:06.9]}
11... Bc2 {[%clk 0:02:51.7]} 12. h6 {[%clk 0:03:04.5]} 12... gxh6 {[%clk
0:02:47.1]} 13. Rxh6 {[%clk 0:03:04.3]} 13... O-O-O {[%clk 0:02:45.1]} 14. Bd3
{[%clk 0:02:51]} 14... Bxd3 {[%clk 0:01:36.6]} 15. Nxd3 {[%clk 0:02:49.9]} 15...
Rhg8 {[%clk 0:01:24.2]} 16. Bf4 {[%clk 0:02:40.8]} 16... Rg6 {[%clk 0:01:07.3]}
17. Bxd6 {[%clk 0:02:28.9]} 17... Qxd6 {[%clk 0:01:05.3]} 18. Rxg6 {[%clk
0:02:29.7]} 18... hxg6 {[%clk 0:01:03.5]} 19. O-O-O {[%clk 0:02:30.5]} 19... Rh8
{[%clk 0:01:01.6]} 20. Ne4 {[%clk 0:02:20.2]} 20... Qd5 {[%clk 0:00:57.1]} 21.
Nxf6 {[%clk 0:02:12.5]} 21... Qxf3 {[%clk 0:00:58]} 22. gxf3 {[%clk 0:02:12.8]}
22... Nxf6 {[%clk 0:00:59.6]} 23. Ne5 {[%clk 0:02:13.9]} 23... Rh7 {[%clk
0:00:59.4]} 24. Kd2 {[%clk 0:02:12.5]} 24... Nd7 {[%clk 0:00:56.3]} 25. Nd3
{[%clk 0:02:12.1]} 25... Kc7 {[%clk 0:00:55.9]} 26. Ke2 {[%clk 0:02:12.9]} 26...
Kd6 {[%clk 0:00:56.3]} 27. c4 {[%clk 0:02:13.1]} 27... f6 {[%clk 0:00:51.5]} 28.
b4 {[%clk 0:02:13]} 28... g5 {[%clk 0:00:49.3]} 29. f4 {[%clk 0:02:12.8]} 29...
g4 {[%clk 0:00:48.7]} 30. Rg1 {[%clk 0:02:09.5]} 30... f5 {[%clk 0:00:48.8]} 31.
Ke3 {[%clk 0:02:10.2]} 31... Rh3+ {[%clk 0:00:48.9]} 32. Rg3 {[%clk 0:02:09.2]}
32... Rh1 {[%clk 0:00:49.2]} 33. f3 {[%clk 0:02:08.3]} 33... Nf6 {[%clk
0:00:49.4]} 34. Ne5 {[%clk 0:02:07.4]} 34... Rh2 {[%clk 0:00:32.2]} 35. fxg4
{[%clk 0:02:05.2]} 35... Rxa2 {[%clk 0:00:32.6]} 36. gxf5 {[%clk 0:01:57.1]}
36... exf5 {[%clk 0:00:27.6]} 37. Rg6 {[%clk 0:01:51.2]} 37... Ke6 {[%clk
0:00:18.4]} 38. d5+ {[%clk 0:01:52.1]} 38... cxd5 {[%clk 0:00:18]} 39. cxd5+
{[%clk 0:01:52.8]} 39... Ke7 {[%clk 0:00:18.3]} 40. d6+ {[%clk 0:01:53.9]} 40...
Ke6 {[%clk 0:00:19.3]} 41. d7 {[%clk 0:01:54]} 41... Ra3+ {[%clk 0:00:19.6]} 42.
Ke2 {[%clk 0:01:53.5]} 42... Ra2+ {[%clk 0:00:20.5]} 43. Kd3 {[%clk 0:01:53.8]}
43... Ra1 {[%clk 0:00:18.9]} 44. Kc2 {[%clk 0:01:52]} 44... Ra2+ {[%clk
0:00:19]} 45. Kc3 {[%clk 0:01:52.5]} 45... Ra3+ {[%clk 0:00:16]} 46. Kb2 {[%clk
0:01:53.3]} 1-0

[Event "*** MasterClass Titled Tuesday Blitz"]
[Site "Chess.com"]
[Date "2017.10.03"]
[Round "1"]
[White "dtn70"]
[Black "TheFlaminGM"]
[Result "1/2-1/2"]
[WhiteElo "2314"]
[BlackElo "2586"]
[TimeControl "180+2"]
[EndTime "13:07:24 PDT"]
[Termination "Game drawn by agreement"]

1. e4 {[%clk 0:02:57.5]} 1... d6 {[%clk 0:03:00.7]} 2. d4 {[%clk 0:02:54]} 2...
Nf6 {[%clk 0:03:01.2]} 3. Nc3 {[%clk 0:02:52.8]} 3... e5 {[%clk 0:03:02.7]} 4.
dxe5 {[%clk 0:02:52.7]} 4... dxe5 {[%clk 0:03:04.6]} 5. Qxd8+ {[%clk 0:02:53.3]}
5... Kxd8 {[%clk 0:03:06.5]} 6. Bc4 {[%clk 0:02:53.6]} 6... Ke8 {[%clk
0:03:06.9]} 7. Bg5 {[%clk 0:02:46.6]} 7... c6 {[%clk 0:03:07.8]} 8. f3 {[%clk
0:02:44.6]} 8... Nbd7 {[%clk 0:03:07.9]} 9. O-O-O {[%clk 0:02:43]} 9... b5
{[%clk 0:03:08.3]} 10. Bb3 {[%clk 0:02:41.9]} 10... Nc5 {[%clk 0:03:09.3]} 11.
Nge2 {[%clk 0:02:39.1]} 11... a5 {[%clk 0:03:03.9]} 12. a3 {[%clk 0:02:37.3]}
12... Nxb3+ {[%clk 0:03:03.6]} 13. cxb3 {[%clk 0:02:39.1]} 13... Be6 {[%clk
0:03:05.1]} 14. Kc2 {[%clk 0:02:37.7]} 14... Nd7 {[%clk 0:03:06.1]} 15. Nc1
{[%clk 0:02:36.6]} 15... Nc5 {[%clk 0:02:52.6]} 16. Be3 {[%clk 0:02:33.3]} 16...
Rb8 {[%clk 0:02:42.1]} 17. N3a2 {[%clk 0:02:33.1]} 17... Nd7 {[%clk 0:02:29]}
18. Rd2 {[%clk 0:02:29]} 18... f6 {[%clk 0:02:07.3]} 19. Rhd1 {[%clk 0:02:28.8]}
19... Be7 {[%clk 0:02:08.2]} 20. Kb1 {[%clk 0:02:23.8]} 20... Rb7 {[%clk
0:02:08.9]} 21. b4 {[%clk 0:02:21.8]} 21... axb4 {[%clk 0:02:00.1]} 22. Nxb4
{[%clk 0:02:21.3]} 22... Bxb4 {[%clk 0:01:59.8]} 23. axb4 {[%clk 0:02:21.7]}
23... Ke7 {[%clk 0:02:01.4]} 24. Nd3 {[%clk 0:02:14.7]} 24... Ra8 {[%clk
0:01:49.1]} 25. Kc2 {[%clk 0:02:14.2]} 25... Rbb8 {[%clk 0:01:23]} 26. Nc5
{[%clk 0:02:13.7]} 26... Nxc5 {[%clk 0:01:22.6]} 27. Bxc5+ {[%clk 0:02:10.2]}
27... Kf7 {[%clk 0:01:23.7]} 28. Rd6 {[%clk 0:02:09.2]} 28... Rc8 {[%clk
0:01:21.9]} 29. g3 {[%clk 0:02:05.6]} 29... g5 {[%clk 0:01:22.2]} 30. f4 {[%clk
0:02:02.4]} 30... exf4 {[%clk 0:01:17.8]} 31. gxf4 {[%clk 0:02:03]} 31... gxf4
{[%clk 0:01:19.4]} 32. Rf1 {[%clk 0:02:03.6]} 32... Rd8 {[%clk 0:01:10.6]} 33.
Rxf4 {[%clk 0:01:58.4]} 33... Rxd6 {[%clk 0:01:10.5]} 34. Bxd6 {[%clk
0:02:00.3]} 34... Ra1 {[%clk 0:01:02.2]} 35. Be5 {[%clk 0:01:56]} 35... Re1
{[%clk 0:00:58.4]} 36. Rxf6+ {[%clk 0:01:41]} 36... Ke7 {[%clk 0:00:59.8]} 37.
Rh6 {[%clk 0:01:40.9]} 37... Rxe4 {[%clk 0:00:58.4]} 38. Rxh7+ {[%clk
0:01:40.3]} 38... Ke8 {[%clk 0:00:58.9]} 39. Bc3 {[%clk 0:01:39.9]} 39... Bf5
{[%clk 0:00:57.5]} 40. Rh8+ {[%clk 0:01:38.5]} 40... Kd7 {[%clk 0:00:58.8]} 41.
Kd2 {[%clk 0:01:38.6]} 41... Rg4 {[%clk 0:00:56.2]} 42. h4 {[%clk 0:01:35.3]}
42... Rg3 {[%clk 0:00:53.4]} 43. Ke2 {[%clk 0:01:33.2]} 43... Rh3 {[%clk
0:00:53.5]} 44. Kf2 {[%clk 0:01:32.3]} 44... Bg4 {[%clk 0:00:53.4]} 45. Rh7+
{[%clk 0:01:30]} 45... Ke6 {[%clk 0:00:53.6]} 46. Rh6+ {[%clk 0:01:31.1]} 46...
Kd5 {[%clk 0:00:53.6]} 47. Rh8 {[%clk 0:01:27.7]} 1/2-1/2

[Event "*** MasterClass Titled Tuesday Blitz"]
[Site "Chess.com"]
[Date "2017.10.03"]
[Round "1"]
[White "Kazan28"]
[Black "Induwara_IM"]
[Result "0-1"]
[WhiteElo "2176"]
[BlackElo "2493"]
[TimeControl "180+2"]
[EndTime "13:07:25 PDT"]
[Termination "Induwara_IM won by resignation"]

1. e4 {[%clk 0:03:01.9]} 1... c6 {[%clk 0:03:01]} 2. d4 {[%clk 0:03:02.4]} 2...
d5 {[%clk 0:03:02.5]} 3. e5 {[%clk 0:03:03.9]} 3... Bf5 {[%clk 0:03:02.7]} 4.
Nf3 {[%clk 0:03:05.3]} 4... e6 {[%clk 0:03:03.6]} 5. Be2 {[%clk 0:03:06.8]} 5...
Ne7 {[%clk 0:03:04.1]} 6. O-O {[%clk 0:03:07.7]} 6... c5 {[%clk 0:03:04.5]} 7.
c3 {[%clk 0:03:09.3]} 7... Nd7 {[%clk 0:03:03.3]} 8. a3 {[%clk 0:03:10.2]} 8...
Nc6 {[%clk 0:03:02.8]} 9. b4 {[%clk 0:02:54]} 9... cxd4 {[%clk 0:03:02.9]} 10.
cxd4 {[%clk 0:02:53.9]} 10... Be7 {[%clk 0:03:03.5]} 11. Re1 {[%clk 0:02:54.8]}
11... O-O {[%clk 0:03:03.2]} 12. Nbd2 {[%clk 0:02:56.2]} 12... a5 {[%clk
0:02:49.6]} 13. b5 {[%clk 0:02:55.7]} 13... Na7 {[%clk 0:02:50.6]} 14. Nf1
{[%clk 0:02:50.6]} 14... Nb6 {[%clk 0:02:49.5]} 15. Ng3 {[%clk 0:02:30.6]} 15...
Bg6 {[%clk 0:02:49.8]} 16. Bd3 {[%clk 0:02:32.2]} 16... Nc4 {[%clk 0:02:48.4]}
17. Bxg6 {[%clk 0:02:32.1]} 17... fxg6 {[%clk 0:02:47.7]} 18. a4 {[%clk
0:02:30.9]} 18... Nc8 {[%clk 0:02:48.5]} 19. Nf1 {[%clk 0:02:27.6]} 19... N8b6
{[%clk 0:02:49.1]} 20. g3 {[%clk 0:02:28.3]} 20... Qd7 {[%clk 0:02:30.1]} 21. h4
{[%clk 0:02:28.8]} 21... Qd8 {[%clk 0:02:32]} 22. Kg2 {[%clk 0:02:29.2]} 22...
Qd7 {[%clk 0:02:33.9]} 23. N1h2 {[%clk 0:02:23.6]} 23... Rf7 {[%clk 0:02:35.8]}
24. Bf4 {[%clk 0:02:22.3]} 24... Rff8 {[%clk 0:02:37.7]} 25. Bc1 {[%clk
0:02:21.1]} 25... Rf7 {[%clk 0:02:36]} 26. Bf4 {[%clk 0:02:21.3]} 26... Raf8
{[%clk 0:02:36.3]} 27. Bc1 {[%clk 0:02:15.6]} 27... Rf5 {[%clk 0:02:32.4]} 28.
Ra2 {[%clk 0:02:16]} 28... Bb4 {[%clk 0:02:32]} 29. Rf1 {[%clk 0:02:14.2]} 29...
h6 {[%clk 0:02:28.2]} 30. Ng1 {[%clk 0:02:08.8]} 30... R5f7 {[%clk 0:02:15.1]}
31. f4 {[%clk 0:02:09.4]} 31... Nc8 {[%clk 0:02:15.9]} 32. Ngf3 {[%clk
0:02:09.5]} 32... Ne7 {[%clk 0:02:16.8]} 33. Qe2 {[%clk 0:02:06.5]} 33... Rc8
{[%clk 0:02:14.5]} 34. Ng4 {[%clk 0:02:06.2]} 34... Nf5 {[%clk 0:02:14.2]} 35.
Ne3 {[%clk 0:02:04.7]} 35... Ncxe3+ {[%clk 0:02:09.7]} 36. Bxe3 {[%clk
0:02:05.7]} 36... Qd8 {[%clk 0:02:05.4]} 37. Bf2 {[%clk 0:02:01.7]} 37... Rfc7
{[%clk 0:02:05.9]} 38. g4 {[%clk 0:02:02.3]} 38... Ne7 {[%clk 0:02:05.1]} 39.
Rh1 {[%clk 0:02:03.1]} 39... Rc3 {[%clk 0:02:04.6]} 40. h5 {[%clk 0:02:03.7]}
40... gxh5 {[%clk 0:02:05.6]} 41. Rxh5 {[%clk 0:02:04.4]} 41... Rb3 {[%clk
0:01:59.3]} 42. f5 {[%clk 0:02:01]} 42... Rcc3 {[%clk 0:01:57.4]} 43. Nh4 {[%clk
0:02:01.9]} 43... Qe8 {[%clk 0:01:41.3]} 44. f6 {[%clk 0:02:02.3]} 44... Ng6
{[%clk 0:01:42]} 45. fxg7 {[%clk 0:01:49.5]} 45... Nf4+ {[%clk 0:01:41.4]} 46.
Kh2 {[%clk 0:01:44.1]} 46... Rh3+ {[%clk 0:01:37.5]} 47. Kg1 {[%clk 0:01:44]}
47... Nxe2+ {[%clk 0:01:34.7]} 48. Rxe2 {[%clk 0:01:30.4]} 48... Kxg7 {[%clk
0:01:35.1]} 49. Kg2 {[%clk 0:01:22.6]} 49... Be7 {[%clk 0:01:35.1]} 50. Nf5+
{[%clk 0:01:18.6]} 50... exf5 {[%clk 0:01:35.9]} 51. Rxh3 {[%clk 0:01:19.7]}
51... Rxh3 {[%clk 0:01:36.6]} 52. Kxh3 {[%clk 0:01:21.2]} 52... Qg6 {[%clk
0:01:37]} 53. gxf5 {[%clk 0:01:20]} 53... Qh5+ {[%clk 0:01:37.8]} 0-1

[Event "*** MasterClass Titled Tuesday Blitz"]
[Site "Chess.com"]
[Date "2017.10.03"]
[Round "1"]
[White "matiss90"]
[Black "yurisolo"]
[Result "0-1"]
[WhiteElo "2270"]
[BlackElo "2537"]
[TimeControl "180+2"]
[EndTime "13:07:28 PDT"]
[Termination "yurisolo won by resignation"]

1. e4 {[%clk 0:03:00.8]} 1... c5 {[%clk 0:03:00.4]} 2. Nf3 {[%clk 0:03:01.6]}
2... d6 {[%clk 0:03:01.8]} 3. d4 {[%clk 0:03:02.5]} 3... Nf6 {[%clk 0:03:03.2]}
4. Nc3 {[%clk 0:03:02.7]} 4... cxd4 {[%clk 0:03:04.6]} 5. Nxd4 {[%clk
0:03:04.6]} 5... a6 {[%clk 0:03:06.1]} 6. Bc4 {[%clk 0:03:05.2]} 6... e6 {[%clk
0:03:07.2]} 7. Bb3 {[%clk 0:03:05.7]} 7... Nbd7 {[%clk 0:03:08.6]} 8. Bg5 {[%clk
0:03:06.2]} 8... Nc5 {[%clk 0:03:09.9]} 9. f4 {[%clk 0:03:06.8]} 9... Be7 {[%clk
0:03:10.9]} 10. Qf3 {[%clk 0:03:06.2]} 10... O-O {[%clk 0:03:11.9]} 11. O-O
{[%clk 0:03:03.5]} 11... h6 {[%clk 0:02:56.3]} 12. Bh4 {[%clk 0:03:01.6]} 12...
Qc7 {[%clk 0:02:42.9]} 13. Kh1 {[%clk 0:03:01.7]} 13... b5 {[%clk 0:02:43]} 14.
Rae1 {[%clk 0:02:46]} 14... Bb7 {[%clk 0:02:42.7]} 15. a3 {[%clk 0:02:43.1]}
15... Nfxe4 {[%clk 0:02:37]} 16. Bxe7 {[%clk 0:02:01.3]} 16... Nxc3 {[%clk
0:02:32.7]} 17. Qxc3 {[%clk 0:02:01.6]} 17... Qxe7 {[%clk 0:02:33.5]} 18. Nf5
{[%clk 0:02:01.9]} 18... Qf6 {[%clk 0:01:33.7]} 19. Qxf6 {[%clk 0:02:01.9]}
19... gxf6 {[%clk 0:01:35.6]} 20. Nxd6 {[%clk 0:02:02.9]} 20... Nxb3 {[%clk
0:01:30.8]} 21. Nxb7 {[%clk 0:01:20.3]} 21... Nd2 {[%clk 0:01:30.2]} 22. Rf2
{[%clk 0:01:15.8]} 22... Nc4 {[%clk 0:01:31.3]} 23. b3 {[%clk 0:01:15.7]} 23...
Nxa3 {[%clk 0:01:28.8]} 24. Nd6 {[%clk 0:01:08.8]} 24... Rfd8 {[%clk 0:01:24.9]}
25. Ne4 {[%clk 0:01:09.3]} 25... f5 {[%clk 0:01:26.3]} 26. Nc5 {[%clk
0:01:05.8]} 26... Rac8 {[%clk 0:01:24.1]} 27. b4 {[%clk 0:01:03.8]} 27... a5
{[%clk 0:01:23.9]} 28. c3 {[%clk 0:01:04.6]} 28... axb4 {[%clk 0:01:24.1]} 29.
cxb4 {[%clk 0:01:06.5]} 29... Rd4 {[%clk 0:01:23]} 30. Rf3 {[%clk 0:01:00.8]}
30... Nc2 {[%clk 0:01:23.1]} 31. Rg3+ {[%clk 0:00:47.9]} 31... Kf8 {[%clk
0:01:23.1]} 32. Rc1 {[%clk 0:00:48.7]} 32... Nxb4 {[%clk 0:01:12.9]} 33. h3
{[%clk 0:00:43.5]} 33... Rc4 {[%clk 0:01:09]} 34. Nd7+ {[%clk 0:00:34.6]} 34...
Ke7 {[%clk 0:01:09.6]} 35. Rd1 {[%clk 0:00:28.3]} 35... Rd8 {[%clk 0:01:05.5]}
0-1

[Event "*** MasterClass Titled Tuesday Blitz"]
[Site "Chess.com"]
[Date "2017.10.03"]
[Round "1"]
[White "tigra"]
[Black "livestrong04"]
[Result "1-0"]
[WhiteElo "2631"]
[BlackElo "2331"]
[TimeControl "180+2"]
[EndTime "13:07:35 PDT"]
[Termination "tigra won by resignation"]

1. e4 {[%clk 0:03:01.9]} 1... c5 {[%clk 0:02:57.2]} 2. Nf3 {[%clk 0:03:02.3]}
2... e6 {[%clk 0:02:55.1]} 3. d4 {[%clk 0:03:02.5]} 3... cxd4 {[%clk 0:02:55.2]}
4. Nxd4 {[%clk 0:03:04.4]} 4... a6 {[%clk 0:02:55.8]} 5. c4 {[%clk 0:03:05]}
5... Nf6 {[%clk 0:02:55.6]} 6. Nc3 {[%clk 0:03:06.6]} 6... Bb4 {[%clk
0:02:56.9]} 7. Qd3 {[%clk 0:03:06.8]} 7... Qc7 {[%clk 0:02:53.4]} 8. Be2 {[%clk
0:03:07]} 8... Nc6 {[%clk 0:02:53.3]} 9. Nxc6 {[%clk 0:02:51.9]} 9... dxc6
{[%clk 0:02:55.2]} 10. a3 {[%clk 0:02:50.4]} 10... Bc5 {[%clk 0:02:55]} 11. b4
{[%clk 0:02:49.3]} 11... Be7 {[%clk 0:02:40.5]} 12. c5 {[%clk 0:02:44]} 12... a5
{[%clk 0:02:38.8]} 13. Rb1 {[%clk 0:02:42.3]} 13... axb4 {[%clk 0:02:39.4]} 14.
axb4 {[%clk 0:02:44.2]} 14... O-O {[%clk 0:02:40]} 15. O-O {[%clk 0:02:43.6]}
15... Rd8 {[%clk 0:02:41.5]} 16. Qc2 {[%clk 0:02:35.2]} 16... e5 {[%clk
0:02:42.1]} 17. Bc4 {[%clk 0:02:35.3]} 17... Rd4 {[%clk 0:02:40.9]} 18. Qb3
{[%clk 0:02:33.8]} 18... Nxe4 {[%clk 0:02:07.5]} 19. Bxf7+ {[%clk 0:02:33.8]}
19... Kh8 {[%clk 0:02:08.7]} 20. Nxe4 {[%clk 0:02:06.7]} 20... Rxe4 {[%clk
0:02:08.1]} 21. Be3 {[%clk 0:02:07.5]} 21... Bf5 {[%clk 0:01:48.2]} 22. Rbd1
{[%clk 0:02:05.8]} 22... Rf8 {[%clk 0:01:46.9]} 23. Bc4 {[%clk 0:02:03.6]} 23...
Rh4 {[%clk 0:01:43.3]} 24. g3 {[%clk 0:02:00.3]} 24... Rh5 {[%clk 0:00:59.3]}
25. Be6 {[%clk 0:01:57.4]} 25... Rd8 {[%clk 0:00:50]} 26. Rxd8+ {[%clk
0:01:23.2]} 26... Qxd8 {[%clk 0:00:49.8]} 27. Rd1 {[%clk 0:01:23.6]} 27... Qf8
{[%clk 0:00:49.4]} 28. g4 {[%clk 0:01:18.2]} 28... Bxe6 {[%clk 0:00:32.9]} 29.
Qxe6 {[%clk 0:01:20.1]} 29... Rh4 {[%clk 0:00:33.9]} 30. Rd7 {[%clk 0:01:18.1]}
30... h5 {[%clk 0:00:10.2]} 31. Rxe7 {[%clk 0:01:08.8]} 31... Rxg4+ {[%clk
0:00:10.7]} 32. Kf1 {[%clk 0:01:09.9]} 32... Qf3 {[%clk 0:00:11.3]} 33. Re8+
{[%clk 0:01:09.7]} 33... Kh7 {[%clk 0:00:11.8]} 34. Qg8+ {[%clk 0:01:11.2]}
34... Kg6 {[%clk 0:00:13]} 35. Re6+ {[%clk 0:01:12.3]} 35... Kf5 {[%clk
0:00:11.5]} 36. Qf7+ {[%clk 0:01:13.1]} 36... Ke4 {[%clk 0:00:12.7]} 37. Rxe5+
{[%clk 0:01:14.2]} 37... Kxe5 {[%clk 0:00:14.6]} 38. Qxf3 {[%clk 0:01:15.4]}
38... Rf4 {[%clk 0:00:15.4]} 39. Bxf4+ {[%clk 0:01:16]} 1-0